Workbook

Sheet apuntes (hidden)
B1: bien escrito
A2: 1 | B2: Comieron sopa, pescado, huevos y postre. | C2: Comieron sopa pescado huevos y postre. | D2: se separaran por medio de coma. Las palabras de igual clase en la misma oración, menos cuando vayan unidas por las conjunciones y,e,ni,o,u
A3: =A2+1 -> 2 | B3: He comprado los vasos, cucharas y tenedores. | C3: He comprado los vasos cucharas y tenedores.
A4: =A3+1 -> 3 | B4: Pero aún nos faltan los platos, tazas, pucheros, etc. | C4: Pero aun nos faltan los platos tazas pucheros etc. | D4: antes de etc. Se pondrá coma si va al final. Caso de ir en medio se pondrá coma antes y después
A5: 4 | B5: No quiero esto ni aquello. Quiero el libro o la revista. | C5: No quiero esto ni aquello quiero el libro o la revista. | D5: se separaran por medio de coma. Las palabras de igual clase en la misma oración, menos cuando vayan unidas por las conjunciones y,e,ni,o,u
A6: 5 | B6: Los nombres de Juan, Antonio, Luis, Carlos, etc., son corrientes. | C6: Los nombres de Juan Antonio Luis Carlos etc. son corrientes. | D6: antes de etc. Se pondrá coma si va al final. Caso de ir en medio se pondrá coma antes y después según la coma hace variar algunas veces el significado
A7: 6 | B7: Han montado un negocio para la venta de cereales, legumbres, aceites, piensos, jabones, etc. | C7: Han montado un negocio para la venta de cereales legumbres aceites piensos jabones etc.
A8: 7 | B8: Las lenguas más extendidas son: el inglés, el francés, el español y el alemán. | C8: Las lenguas mas extendidas son el ingles el frances el español y el aleman.
A9: 8 | B9: Me gustaría vivir en Madrid, Barcelona, Sevilla o Bilbao. | C9: Me gustaria vivir en Madrid Barcelona Sevilla o Bilbao.
A10: 9 | B10: Pregunté a José María y Luis que preferían y me contestaron: Quedarnos, no marcharnos. | C10: Pregunte a Jose Maria y Luis que preferian y me contestaron Quedarnos no marcharnos. | D10: según la coma hace variar algunas veces el significado quedarnos, no marcharnos quedarnos no, marcharnos
A11: 10 | B11: Antes de ocupar el cargo has de dominar la ortografía, la mecanografía, la contabilidad, el cálculo, etc. | C11: Antes de ocupar el cargo has de dominar la ortografia la mecanografia la contabilidad el calculo etc.
A12: 11 | B12: Pereda, Galdós, Benavente, etc., son ejemplos de genio literario español. | C12: Pereda Galdos Benavente etc. son ejemplos de genio literario español.
A13: 12 | B13: Inglaterra, Estados Unidos, Alemania y Bélgica son grandes productores de carbón. | C13: Inglaterra Estados Unidos Alemania y Belgica son grandes productores de carbon.
A14: 13 | B14: Don Miguel de Cervantes el escritor de El Quijote, es considerado por muchos el creador de la novela moderna. | C14: Don Miguel de Cervantes el escritor de El Quijote es considerado por muchos el creador de la novela moderna.
A15: 14 | B15: El alumno, de origen catalán, mostró una interesante visión sobre el nacionalismo. | C15: El alumno de origen catalan mostro una interesante vision sobre el nacionalismo. | D15: En este caso, ya se sabe de qué alumno se está hablando y se explica que es de origen catalán.
A16: 15 | B16: Todos los trabajadores, excepto los del sindicato, fueron readmitidos. | C16: Todos los trabajadores excepto los del sindicato fueron readmitidos.
A17: 16 | B17: Todos vinieron a la fiesta: Pedro, Juan, María, César y Cristina. | C17: Todos vinieron a la fiesta Pedro Juan Maria Cesar y Cristina.
A18: 17 | B18: Metí en la maleta todo lo necesario: neceser, ropa, libros para el viaje, etc. | C18: Meti en la maleta todo lo necesario neceser ropa libros para el viaje etc.
A19: 18 | B19: Me felicitaron todos mis amigos: Alberto, Gema, Alejandro, María... | C19: Me felicitaron todos mis amigos Alberto Gema Alejandro Maria...
A20: 19 | B20: Brindo por ti, por mí; y por todos los que han venido. | C20: Brindo por ti por mi y por todos los que han venido.
A21: 20 | B21: El ruido era estridente, ensordecedor, y causaba la locura de todo el que lo escuchaba. | C21: El ruido era estridente ensordecedor y causaba la locura de todo el que lo escuchaba.
A22: 21 | B22: En el armario colocó los pantalones; en el cajón, los calcetines; en los estantes, los zapatos, y los complementos, no los colocó. | C22: En el armario coloco los pantalones en el cajon los calcetines en los estantes los zapatos y los complementos no los coloco.
A23: 22 | B23: Sebastián, te he dicho que vengas. | C23: Sebastian te he dicho que vengas.
A24: 23 | B24: Ya tiene usted un aviso, Martínez. | C24: Ya tiene usted un aviso Martínez. | D24: a la persona que nos dirigimos
A25: 24 | B25: Sí, señor. | C25: Si señor. | D25: a la persona que nos dirigimos
A26: 25 | B26: Belén, Pedro y Juan van a ir a la cena; Cristina y María, no. | C26: Belen Pedro y Juan van a ir a la cena Cristina y Maria no.
A27: 26 | B27: Los que están aprobados, por ahí. | C27: Los que estan aprobados por ahi. | D27: Se escribe coma cuando el verbo se omite por haber sido mencionado con anterioridad:
A28: 27 | B28: Lo arregló un aficionado hace un año. Lo hizo bien, sin embargo; todavía me funciona. | C28: Lo arreglo un aficionado hace un año lo hizo bien sin embargo todavia me funciona.
A29: 28 | B29: Hoy lloverá; por ello, mejor no salimos de excursión. | C29: Hoy llovera por ello mejor no salimos de excursion.
A30: 29 | B30: No es mi libro preferido, pero me gusta. | C30: No es mi libro preferido pero me gusta.
A31: 30 | B31: Ya es tarde; pero me quedo un poco más. | C31: Ya es tarde pero me quedo un poco mas. | D31: No se escribe coma detrás de pero:
A32: 31 | B32: Ya es tarde; pero, ya que me lo pides, me quedo un poco más. | C32: Ya es tarde pero ya que me lo pides me quedo un poco mas. | D32: No se escribe coma detrás de pero por significar ya que
A33: 32 | B33: Pero...¿qué me dices? | C33: Pero...¿que me dices? | D33: No se escribe coma detrás de pero: Sí la puede llevar si va seguido de un inciso:
A34: 33 | B34: Pero...¡ no puede ser ! | C34: Pero...¡ no puede ser ! | D34: Cuando (pero) precede a una construcción interrogativa o exclamativa no se pone coma; se pueden utilizar puntos suspensivos:
A35: 34 | B35: Tu trabajo no está completo así que es mejor que lo repitas. | C35: Tu trabajo no esta conpleto asi que es mejor que lo repitas. | D35: Cuando pero precede a una construcción interrogativa o exclamativa no se pone coma; se pueden utilizar puntos suspensivos:
A36: 35 | B36: Aunque había estudiado, no aprobé el examen. | C36: Aunque habia estudiado no aprobe el examen. | D36: no se coloca coma detrás de aunque ni de así que:
A37: 36 | B37: Le dije que se fuera, y no hizo caso. | C37: Le dije que se fuera y no hizo caso. | D37: º
A38: 37 | B38: El descuento será aplicable en cualquier tarifa, excepto en las de grupos. | C38: El descuento sera aplicable en cualquier tarifa excepto en las de grupos. | D38: Si la conjunción (y) posee valor adversativo (equivalente a pero), puede ir precedida de coma:
A39: 38 | B39: Estoy disponible todos los días, salvo el último jueves del mes. | C39: Estoy disponible todos los dias salvo el ultimo jueves del mes. | D39: delante de excepto / salvo / menos
A40: 39 | B40: Puedes hacer con ello lo que quieras, menos regalarlo. | C40: Puedes hacer con ello lo que quieras menos regalarlo. | D40: delante de excepto / salvo / menos
A41: 40 | B41: Muerto el perro, se acabó la rabia. | C41: Muerto el perro se acabo la rabia. | D41: delante de excepto / salvo / menos
A42: 41 | B42: Durante aquellos intensos primeros años de casados, el tiempo pasaba lentamente. | C42: Durante aquellos intensos primeros años de casados el tiempo pasaba lentamente.
A43: 42 | B43: Si no sabes qué hacer, no vengas con nosotros. | C43: Si no sabes que hacer no vengas con nosotros.
A44: 43 | B44: El novio, los parientes, los invitados, etc., esperaban ya la llegada de la novia. | C44: El novio los parientes los invitados etc. esperaban ya la llegada de la novia. | D44: no vengas con nostros, si no sabes que hacer (invertiendo el sentido)
A45: 44 | B45: Mi hermano, como tú sabes, es un magnífico deportista. | C45: Mi hermano como tu sabes es un magnifico deportista.
A46: 45 | B46: Creía que telefonearía, telegrafiaría o escribiría. | C46: Creia que telefonearia telegrafiaria o escribiria.
A47: 46 | B47: Sueñas con excursiones, fiestas, novelas, partidos, etc., sin pensar que así no triunfarás en la vida. | C47: Sueñas con excursiones fiestas novelas partidos etc. sin pensar que asi no triunfaras en la vida.
A48: 47 | B48: La gramática se divide en cuatro partes: prosodia, morfologia, sintaxis y ortografía. | C48: La gramatica se divide en cuatro partes prosodia morfologia sintaxis y ortografia.
A49: 48 | B49: Para reponerte necesitas comer bien, trabajar poco, dormir mucho y distraerte. | C49: Para reponerte necesitas comer bien trabajar poco dormir mucho y distraerte.
A50: 49 | B50: Necesitamos adquirir telas, algodón e hilo. | C50: Necesitamos adquirir telas algodon e hilo.
A51: 50 | B51: No me importa que seas alto, bajo o regular. | C51: No me importa que seas alto bajo o regular.
A52: 51 | B52: Era joven, educado, correcto, amable y servicial. | C52: Era joven educado correcto amable y servicial.
A53: 52 | B53: Caja, mobiliario, mercaderias, maquinaría, etc., son cuentas muy usadas en contabilidad. | C53: Caja mobiliario mercaderias maquinaria etc. son cuentas muy usadas en contabilidad.
A54: 53 | B54: Juan es bueno y Pedro, malo. | C54: Juan es bueno y Pedro malo.
A55: 54 | B55: Tenemos que prepararnos, debemos aprender, necesitamos trabajar, si queremos progresar en la vida. | C55: Tenemos que prepararnos debemos aprender necesitamos trabajar si queremos progresar en la vida. | D55: se usa coma cuando el verbo esté sobrentendido
A56: 55 | B56: Amigo Pedro, debes cuidarte. | C56: Amigo Pedro debes cuidarte. | D56: se utilizará la coma para separar oraciones de ua misma cláusula, aunque vayan unidas por una conjunción
A57: 56 | B57: No comprendo, María, como dices eso. | C57: No comprendo Maria como dices eso. | D57: El nombre de la persona a quien nos dirigimos (vocativo) y las palabras que la acompañan, van seguidas de coma cuando están al principio; entre comas si están en medio y precedidas al final
A58: 57 | B58: Es necesario que vuelvas pronto, querido Antonio. | C58: Es necesario que vuelvas pronto querido Antonio. | D58: El nombre de la persona a quien nos dirigimos (vocativo) y las palabras que la acompañan, van seguidas de coma cuando están al principio; entre comas si están en medio y precedidas al final
A59: 58 | B59: Si no estudias, dijo el padre, no saldrás a pasear. | C59: Si no estudias dijo el padre no saldras a pasear. | D59: El nombre de la persona a quien nos dirigimos (vocativo) y las palabras que la acompañan, van seguidas de coma cuando están al principio; entre comas si están en medio y precedidas al final
A60: 59 | B60: Este libro, que es una Geografía, vale veinte pesetas. | C60: Este libro que es una Geografia vale veinte pesetas. | D60: Se pondrá coma antes y después de las oraciones intercaladas, especialmente de las explicativas precedidas del pronombre (que)
A61: 60 | B61: El defecto estaba, pues, en el carburador. Necesitamos, por consiguiente, repasarlo antes de partir. | C61: El defecto estaba pues en el carburador necesitamos por consiguiente repasarlo antes de partir. | D61: Se pondrá coma antes y después de las oraciones intercaladas, especialmente de las explicativas precedidas del pronombre (que)
A62: 61 | B62: No comprendí nada, pues estaba demasiado lejos. | C62: No comprendi nada pues estaba demasiado lejos. | D62: Se colocará coma antes y después de (pues) y(también) de finalmente, es decir, de modo que, en efecto, en consecuencia, ya que, sin embargo y otras expresiones similares.
A63: 62 | B63: Al regresar del campo, jugaremos en la plaza. | C63: Al regresar del campo jugaremos en la plaza. | D63: Se colocará coma antes y después de (pues) y(también) de finalmente, es decir, de modo que, en efecto, en consecuencia, ya que, sin embargo y otras ...expresiones similares. Cuando (pues) significa (ya que) sólo se pondrá coma delante
A64: 63 | B64: Donde menos lo piensas, lo hallarás. | C64: Donde menos lo piensas lo allaras. | D64: Cuando se invierte en el orden regular, se pondrá coma después de la parte adelantada
A65: 64 | B65: Dos horas estuvimos explicándoles el mecanismo de la nueva máquina; pero no parecieron comprenderlo del todo. | C65: Dos horas estuvimos explicandoles el mecanismo de la nueva maquina pero no parecieron conprenderlo del todo. | D65: Cuando se invierte en el orden regular, se pondrá coma después de la parte adelantada
A66: 65 | B66: Les escribí dos veces, mas no contestaron. | C66: Les escribi dos veces mas no contestaron. | D66: Se pondrá punto y coma antes de las conjunciones adversativas (más, pero, sin embargo, aunque, no obstante, etc., en periodos de alguna extensión. Si estos fuesen cortos bastará coma.
A67: 66 | B67: Por causas ajenas a nosotros, se ha producido un error lamentable que afecta a alguno de nuestros clientes, entre los que pensamos podría encontrarse usted. | C67: Por causas ajenas a nosotros se a producido un error lamentable que afecta a alguno de nuestros clientes entre los que pensamos podria encontrarse usted. | D67: Se pondrá punto y coma antes de las conjunciones adversativas (más, pero, sin embargo, aunque, no obstante, etc., en periodos de alguna extensión. Si estos fuesen cortos bastará coma.
A68: =A67+1 -> 67 | B68: Algunos de mis clientes habituales se ha interesado por un tipo de productos que ustedes fabrican, y de los cuales yo no tenía referencia hasta el momento. Al parecer, se trata de pinturas de interior, de tipo esmalte y resistentes al agua. | C68: Algunos de mis clientes abituales se a interesado por un tipo de productos que ustedes fabrican y de los cuales yo no tenia referencia hasta el momento al parecer se trata de pinturas de interior de tipo esmalte y resistentes al agua.
A69: 68 | B69: Necesito que me envíen toda la información posible sobre dichas pinturas: características técnicas, gamas de colores, tamaños de envase y, ¡como no!, lista de precios. | C69: Necesito que me envien toda la informacion posible sobre dichas pinturas caracteristicas tecnicas gamas de colores tamaños de envase y como no lista de precios.
A70: 69 | B70: Distinguidos señores: | C70: Distinguidos señores
A71: 70 | B71: Desde hace más de diez años me dedico a la venta al por menor de artículos de perfumería y droguería, y entre ellos, las pinturas. | C71: Desde hace mas de diez años me dedico a la venta al por menor de articulos de perfumeria y drogueria y entre ellos las pinturas.
A72: 71 | B72: Creo que podría interesarme la distribución de sus productos en mi establecimiento, siempre que las condiciones que ustedes me ofrezcan sean aceptables. | C72: Creo que podria interesarme la distribucion de sus productos en mi establecimiento siempre que las condiciones que ustedes me ofrezcan sean aceptables.
A73: 72 | B73: Confío en que me enviarán, lo antes posible, toda la información sobre: Tipos de pinturas. Características y aplicaciones. | C73: Confio en que me enviaran lo antes posible toda la informacion sobre tipos de pinturas caracteristicas y aplicaciones.
A74: 73 | B74: También necesito conocer otros aspectos relacionados con las compras, como son: Formas y plazos de envío. | C74: Tanbien necesito conocer otros aspectos relacionados con las compras como son formas y plazos de envio.
A75: 74 | B75: Pronto se construirá la nueva estación, según dicen. | C75: Pronto se construira la nueva estacion segun dicen.
A76: 75 | B76: Saldré de paseo, cuando acabe este trabajo. | C76: Saldre de paseo cuando acabe este trabajo. | D76: Cuando se invierte en el orden regular, se pondrá coma después de la parte adelantada
A77: 76 | B77: Las aleaciones de mercurio con otros metales, llamánse amalgamas. | C77: Las aleaciones de mercurio con otros metales llamanse amalgamas. | D77: Cuando se invierte en el orden regular, se pondrá coma después de la parte adelantada
A78: 77 | B78: Por inútil, causó baja en el ejercito. | C78: Por inutil causo baja en el ejercito. | D78: Cuando se invierte en el orden regular, se pondrá coma después de la parte adelantada
A79: 78 | B79: Si tuviera más dinero, compraría aquel reloj. | C79: Si tuviera mas dinero compraria aquel reloj. | D79: Cuando se invierte en el orden regular, se pondrá coma después de la parte adelantada
A80: 79 | B80: Compraría aquel reloj, si tuviera más dinero. | C80: Compraria aquel reloj si tuviera mas dinero. | D80: Cuando se invierte en el orden regular, se pondrá coma después de la parte adelantada
A81: 80 | B81: Si no vienes, no comerás. | C81: Si no vienes no comeras. | D81: Cuando se invierte en el orden regular, se pondrá coma después de la parte adelantada
A82: 81 | B82: Cuando llega el invierno, muchas aves emigran. | C82: Cuando llega el invierno muchas aves emigran. | D82: Cuando se invierte en el orden regular, se pondrá coma después de la parte adelantada
A83: 82 | B83: Muchas aves emigran, cuando llega el invierno. | C83: Muchas aves emigran cuando llega el invierno. | D83: Cuando se invierte en el orden regular, se pondrá coma después de la parte adelantada
A84: 83 | B84: En este tren, iremos a Granada. | C84: En este tren iremos a Granada. | D84: Cuando se invierte en el orden regular, se pondrá coma después de la parte adelantada
A85: 84 | B85: A él y no a otro, le toca escribir. | C85: A el y no a otro le toca escribir. | D85: Cuando se invierte en el orden regular, se pondrá coma después de la parte adelantada
A86: 85 | B86: Le toca escribir, a él y no a otro. | C86: Le toca escribir a el y no a otro. | D86: Cuando se invierte en el orden regular, se pondrá coma después de la parte adelantada
A87: 86 | B87: Sin decir palabra, se levantaron los comensales. | C87: Sin decir palabra se levantaron los comensales. | D87: Cuando se invierte en el orden regular, se pondrá coma después de la parte adelantada
A88: 87 | B88: Se levantaron los comensales, sin decir palabra. | C88: Se levantaron los comensales sin decir palabra. | D88: Cuando se invierte en el orden regular, se pondrá coma después de la parte adelantada
A89: 88 | B89: Cansado de esperar y mirar el reloj, me marché a casa de mis padres. | C89: Cansado de esperar y mirar el reloj me marche a casa de mis padres. | D89: Cuando se invierte en el orden regular, se pondrá coma después de la parte adelantada
A90: 89 | B90: Me marché a casa de mis padres, cansado de esperar y mirar el reloj. | C90: Me marche a casa de mis padres cansado de esperar y mirar el reloj. | D90: Cuando se invierte en el orden regular, se pondrá coma después de la parte adelantada
A91: 90 | B91: Por no haber atendido los consejos de su padre, Luis sufrió muchos accidentes. | C91: Por no haber atendido los consejos de su padre Luis sufrio muchos accidentes. | D91: Cuando se invierte en el orden regular, se pondrá coma después de la parte adelantada
A92: 91 | B92: Luis sufrió muchos accidentes, por no haber atendido los consejos de su padre. | C92: Luis sufrio muchos accidentes por no haber atendido los consejos de su padre. | D92: Cuando se invierte en el orden regular, se pondrá coma después de la parte adelantada
A93: 92 | B93: Cuando llegamos a la cima, estábamos cansados y molidos; pero la vista de un panorama encantador nos reanimó. | C93: Cuando llegamos a la cima estabamos cansados y molidos pero la vista de un panorama encantador nos reanimo. | D93: Cuando se invierte en el orden regular, se pondrá coma después de la parte adelantada
A94: 93 | B94: Es conveniente que la habitación esté caldeada; pues el tiempo es frío y; sin embargo hay que procurar que exista buena ventilación. | C94: Es conveniente que la habitacion este caldeada pues el tiempo es frio y sin embargo hay que procurar que exista buena ventilacion. | D94: Cuando se invierte en el orden regular, se pondrá coma después de la parte adelantada
A95: 94 | B95: Lo tengo todo preparado; sin embargo no marcharé. | C95: Lo tengo todo preparado sin embargo no marchare. | D95: Se pondrá punto y coma antes de las conjunciones adversativas (más, pero, sin embargo, aunque, no obstante, etc., en periodos de alguna extensión. Si estos fuesen cortos bastará coma.
A96: 95 | B96: Guárdate bien de los que sean tus enemigos; pero guárdate mejor de los que dicen ser tus amigos. | C96: Guardate bien de los que sean tus enemigos pero guardate mejor de los que dicen ser tus amigos. | D96: Se pondrá punto y coma antes de las conjunciones adversativas (más, pero, sin embargo, aunque, no obstante, etc., en periodos de alguna extensión. Si estos fuesen cortos bastará coma.
A97: 96 | B97: Procuraremos complacerle y estudiaremos de nuevo su petición; mas creemos que será difícil contestar afirmativamente. | C97: Procuraremos complacerle y estudiaremos de nuevo su peticion mas creemos que sera dificil contestar afirmativamente. | D97: Se pondrá punto y coma antes de las conjunciones adversativas (más, pero, sin embargo, aunque, no obstante, etc., en periodos de alguna extensión. Si estos fuesen cortos bastará coma.
A98: 97 | B98: Me vio; mas no me dijo nada. | C98: Me vio mas no me dijo nada. | D98: Se pondrá punto y coma antes de las conjunciones adversativas (más, pero, sin embargo, aunque, no obstante, etc., en periodos de alguna extensión. Si estos fuesen cortos bastará coma.
A99: 98 | B99: Los cálculos estaban bien, la construcción se hizo a conciencia, el material era bueno; sin embargo la máquina no dio buen resultado. | C99: Los calculos estaban bien la construcción se hizo a conciencia el material era bueno sin embargo la maquina no dio buen resultado. | D99: Se pondrá punto y coma antes de las conjunciones adversativas (más, pero, sin embargo, aunque, no obstante, etc., en periodos de alguna extensión. Si estos fuesen cortos bastará coma.
A100: 99 | B100: Ven cuando quieras; pero antes de las dos. | C100: Ven cuando quieras pero antes de las dos. | D100: Se pondrá punto y coma antes de las conjunciones adversativas (más, pero, sin embargo, aunque, no obstante, etc., en periodos de alguna extensión. Si estos fuesen cortos bastará coma.
A101: 100 | B101: Estoy seguro de no haberme equivocado en las operaciones que acabo de entregarte; sin embargo las repasaré de nuevo para mayor seguridad. | C101: Estoy seguro de no haberme equivocado en las operaciones que acabo de entregarte sin enbargo las repasare de nuevo para mayor seguridad. | D101: Se pondrá punto y coma antes de las conjunciones adversativas (más, pero, sin embargo, aunque, no obstante, etc., en periodos de alguna extensión. Si estos fuesen cortos bastará coma.
A102: 101 | B102: Si te comparas con los que tienen mucho pensarás que tienes poco; pero si miras a los que tienen poco creerás que tienen mucho. | C102: Si te conparas con los que tienen mucho pensaras que tienes poco pero si miras a los que tienen poco creeras que tienes mucho. | D102: Se pondrá punto y coma antes de las conjunciones adversativas (más, pero, sin embargo, aunque, no obstante, etc., en periodos de alguna extensión. Si estos fuesen cortos bastará coma.
A103: 102 | B103: Bien está que quieras progresar y trabajes con ahinco para lograrlo; pero no conviene extralimitarse en este afán. | C103: Bien esta que quieras progresar y trabajes con ahinco para lograrlo pero no conviene extralimitarse en este afan. | D103: Se pondrá punto y coma antes de las conjunciones adversativas (más, pero, sin embargo, aunque, no obstante, etc., en periodos de alguna extensión. Si estos fuesen cortos bastará coma.
A104: 103 | B104: Distinguidos señores: Rogamos tengan la bondad de... | C104: distinguidos señores rogamos tengan la bondad de... | D104: Se pondrá punto y coma antes de las conjunciones adversativas (más, pero, sin embargo, aunque, no obstante, etc., en periodos de alguna extensión. Si estos fuesen cortos bastará coma.
A105: 104 | B105: Cisneros dijo: "Esos son mis poderes". | C105: Cisneros dijo "Esos son mis poderes". | D105: Los ( : ) dos puntos. Después de las expresiones Muy señor mio, Apreciado amigo, etc., con que se empieza una carta
A106: 105 | B106: Hay tres clases de ángulos: agudos, rectos, y obtusos. | C106: Hay tres clases de angulos agudos rectos y obtusos. | D106: Los ( : ) dos puntos. Antes de citar palabras textuales
A107: 106 | B107: Es buena, honrada, virtuosa, caritativa, trabajadora: es una santa. | C107: Es buena honrada virtuosa caritativa trabajadora es una santa. | D107: Los ( : ) dos puntos. Cuando se sienta una preposición general y en seguida se enumera, comprueba y explica.
A108: 107 | B108: Distinguidos señores: En contestación a su atenta del 24 de julio del 2010 | C108: Distinguidos señores en contestación a su atenta del 24 de julio del 2010 | D108: Los ( :) dos puntos. Antes del resumen o consecuencia de lo que se ha indicado.
A109: 108 | B109: El año tiene cuatro estaciones: primavera, verano, otoño e invierno. | C109: El año tiene cuatro estaciones primavera verano otoño e invierno. | D109: Los ( : ) dos puntos. Después de las expresiones Muy señor mio, Apreciado amigo, etc., con que se empieza una carta
A110: 109 | B110: El profesor nos dijo: aprended bien la regla y después podréis hacer el ejercicio. | C110: El profesor nos dijo aprended bien la regla y despues podreis acer el ejercicio. | D110: Los ( : ) dos puntos. Cuando se sienta una preposición general y en seguida se enumera, comprueba y explica.
A111: 110 | B111: Un mal libro, un mal amigo, un mal ejemplo: los tres grandes enemigos de la juventud. | C111: Un mal libro un mal amigo un mal ejemplo los tres grandes enemigos de la juventud. | D111: Los ( :) dos puntos. Antes del resumen o consecuencia de lo que se ha indicado.
A112: 111 | B112: Certificamos: que don Luis García, presta sus servicios en nuestra fábrica. | C112: Certificamos que don Luis García presta sus servicios en nuestra fabrica. | D112: Los ( :) dos puntos. Antes del resumen o consecuencia de lo que se ha indicado.
A113: 112 | B113: Dos son los componentes del agua: hidrógeno y oxígeno. | C113: Dos son los componentes del agua idrogeno y oxigeno. | D113: Los ( : ) dos puntos. Después de las expresiones Muy señor mio, Apreciado amigo, etc., con que se empieza una carta
A114: 113 | B114: Señoras y señores: en este día de feliz recuerdo nos hallamos reunidos... | C114: Señoras y señores: en este dia de feliz recuerdo nos hallamos reunidos... | D114: Los ( : ) dos puntos. Cuando se sienta una preposición general y en seguida se enumera, comprueba y explica.
A115: 114 | B115: Los soldados valerosos serán recompensados: los cobardes serán castigados. | C115: Los soldados valerosos seran reconpensados los cobardes seran castigados. | D115: Los ( : ) dos puntos. Después de las expresiones Muy señor mio, Apreciado amigo, etc., con que se empieza una carta
A116: 115 | B116: Las palabras agudas terminadas en s se acentúan: saldrás, Jesús, darás. | C116: Las palabras agudas terminadas en s se acentuan saldras Jesus daras. | D116: antes de b y p (m) pondré
A117: 116 | B117: Cortés, Pizarro y Balboa: tres colosos de la conquista de América. | C117: Cortes Pizarro y Balboa tres colosos de la conquista de America.
A118: 117 | B118: Dice un refrán: a Dios rogando y con el mazo dando. | C118: Dice un refraán a Dios rogando y con el mazo dando.
A119: 118 | B119: Trabaja poco y gasta mucho: pronto se arruinará. | C119: Trabaja poco y gasta mucho pronto se arruinara.
A120: 119 | B120: Un rey francés dijo: que ya no había Pirineos. | C120: Un rey frances dijo que ya no habia Pirineos.
A121: 120 | B121: Suplica: se digne autorizar la apertura del citado establecimiento. | C121: Suplica se digne autorizar la apertura del citado establecimiento.
A122: 121 | B122: La inflación, la subida de precios, el reajuste de salarios, la desvalorización monetaria: síntomas de un desbarajuste económico. | C122: La inflacion la subida de precios el reajuste de salarios la desvalorizacion monetaria sintomas de un desbarajuste economico.
A123: 122 | B123: Siete son los días de la semana: lunes, martes, miércoles, jueves, viernes, sábado y domingo. | C123: Siete son los dias de la semana lunes martes miercoles jueves viernes sabado y domingo.
A124: 123 | B124: Sé sobrio en la comida, come despacio, bebe poco alcohol, no tomes alimentos demasiado sazonados: así tendrás buena salud. | C124: Sé sobrio en la comida come despacio bebe poco alcool no tomes alimentos demasiado sazonados asi tendras buena salud.
A125: 124 | B125: Adjetivos calificativos son los que denotan alguna cualidad del nombre: bueno, ágil, azul, etc. | C125: Adjetivos calificativos son los que denotan alguna cualidad del nonbre bueno agil azul etc.
A126: 125 | B126: Tengo que terminar unas cartas, hacer varias facturas, repasar unas notas: no podré pasear hoy. | C126: Tengo que terminar unas cartas hacer varias facturas repasar unas notas no podre pasear oy.
A127: 126 | B127: Don Juan Linares, debe por arreglo de unas puertas: cuarenta pesetas. | C127: Don Juan Linares debe por arreglo de unas puertas cuarenta pesetas.
A128: 127 | B128: Distinguidos señores: Desde hace más de diez años… | C128: Distinguidos señores desde hace mas de diez años…
A129: 128 | B129: Desde hace más de diez años me dedico a la venta al por menor de artículos de perfumería y droguería, y entre ellos, las pinturas. | C129: Desde hace mas de diez años me dedico a la venta al por menor de articulos de perfumera y drogeria y entre ellos las pinturas.
A130: 129 | B130: Creo que podría interesarme la distribución de sus productos en mi establecimiento, siempre que las condiciones que ustedes me ofrezcan sean aceptables. | C130: Creo que podria interesarme la distribución de sus productos en mi establecimiento siempre que las condiciones que ustedes me ofrezcan sean aceptables.
A131: 130 | B131: Confío en que me enviarán, lo antes posible, toda la información sobre: | C131: Confio en que me enviaran lo antes posible toda la informacion sobre
A132: =A131+1 -> 131 | B132: También necesito conocer otros aspectos relacionados con las compras, como son: | C132: Tanbien necesito conocer otros aspectos relacionados con las compras como son
A133: 132 | B133: En la propia carta se detalla el pedido; por tanto, es necesario dar todos los detalles sobre la mercancía que se pide: | C133: En la propia carta se detalla el pedido por tanto es necesario dar todos los detalles sobre la mercancia que se pide
A134: 133 | B134: Cuando se trata de un comprador habitual, y siempre que las condiciones asociadas a las compras, envíos, pagos, etc., no varíen, no será necesario repetirlas... | C134: Cuando se trata de un comprador abitual y siempre que las condiciones asociadas a las compras envios pagos etc. no varien no sera necesario repetirlas...
A135: 134 | B135: En la escritura, las palabras no se presentan aisladas, sino formando parte de un conjunto en el que... | C135: En la escritura las palabras no se presentan aisladas sino formando parte de un conjunto en el que...
A136: 135 | B136: La paralingüística, recordemos, es lo referente a la entonación, el modo de pronunciar las palabras, las pausas, etc., que, la mayoría de las veces, podemos también plasmar… | C136: La paralingüística recordemos es lo referente a la entonación el modo de pronunciar las palabras las pausas etc. que la mayoría de las veces podemos también plasmar…
A137: 136 | B137: Podemos comparar a los signos de puntuación con las señales de tráfico, que nos indican las paradas obligatorias, los giros y cambios de sentido. | C137: Podemos comparar a los signos de puntuacion con las señales de trafico que nos indican las paradas obligatorias los giros y cambios de sentido.
A138: 137 | B138: Sirve para indicar pausas breves en la escritura. Se debe emplear para: | C138: Sirve para indicar pausas breves en la escritura se debe emplear para
A139: 138 | B139: Tenemos a su disposición: tuercas, tornillos, arandelas y alambre. | C139: Tenemos a su disposición tuercas tornillos arandelas y alambre.
A140: 139 | B140: Quiero estudiar, aprender bien una profesión, hacerme un sitio en la vida y ser un profesional respetado. | C140: Quiero estudiar aprender bien una profesión hacerme un sitio en la vida y ser un profesional respetado. | D140: Sirve para indicar pausas breves en la escritura. Se debe emplear para: Separar elementos análogos en una enumeración. La última coma se sustituye por la conjunción (y)
A141: 140 | B141: La mercancía que le enviamos, correspondiente a su pedido número seis, está pendiente de pago. | C141: La mercancia que le enviamos correspondiente a su pedido numero seis esta pendiente de pago. | D141: Separar oraciones
A142: 141 | B142: Su solicitud, señora Solís, la atenderemos en cuanto nos sea posible. | C142: Su solicitud señora Solís la atenderemos en cuanto nos sea posible. | D142: Para introducir una oración explicativa
A143: 142 | B143: En el anterior pedido le enviamos doscientas piezas, en éste, sólo cien. | C143: En el anterior pedido le enviamos doscientas piezas en este solo cien. | D143: Para separar el nombre con que nos dirigimos a otra persona.
A144: 143 | B144: La operación fue un éxito; estamos satisfechos. | C144: La operacion fue un exito estamos satisfechos. | D144: El verbo omitido se sustituye por la coma
A145: 144 | B145: Los grandes almacenes tenían cuatro plantas: primera, ferretería; segunda, electrodomésticos; tercera, menaje y cuarta sanitarios. | C145: Los grandes almacenes tenían cuatro plantas primera ferretería segunda electrodomésticos tercera menaje y cuarta sanitarios. | D145: Para separar frases que están relacionadas pero que no van unidas por un conjunción o una preposición.
A146: 145 | B146: Repuestos, componentes, piezas; todo ellos puede encontrarlos en nuestro almacén. | C146: Repuestos componentes piezas todo ellos puede encontrarlos en nuestro almacen. | D146: En las enumeraciones en las que el uso de la coma puede causar confusiones.
A147: 146 | B147: Dispone de todo el material escolar: libros, cuadernos, lápices… | C147: Dispone de todo el material escolar libros cuadernos lapices | D147: Para separar una oración que hace referencia a una serie de elementos citados anteriormente.
A148: 147 | B148: Disponemos de: ordenador, impresora, máquina de escribir, fax… | C148: Disponemos de ordenador impresora maquina de escribir fax… | D148: puntos suspensivos (...) en lugar de etc.
A149: 148 | B149: Estimados señores: Les comunico que… | C149: Estimados señores les comunico que… | D149: los dos puntos (:) Para enumerar una serie de cosas
A150: 149 | B150: Los productos que le presento (únicos en el mercado) tienen la ventaja. | C150: Los productos que le presento unicos en el mercado tienen la ventaja. | D150: (:) Después de las fórmulas de saludo.
A151: 150 | B151: Los productos que le presento, únicos en el mercado, tienen la ventaja… | C151: Los productos que le presento únicos en el mercado tienen la ventaja… | D151: el paréntesis () Se emplea para hacer un inciso dentro de la frase.
A152: 151 | B152: Te digo Carmen, que no escribas. | C152: Te digo Carmen que no escribas. | D152: El inciso explicativo también puede ponerse entre comas, en vez de paréntesis ()
A153: 152 | B153: Juan, acércame el azúcar. | C153: Juan acércame el azúcar. | D153: El vocativo siempre va separado del resto de la oración por coma.
A154: 153 | B154: Javier, te aconsejo prudencia. | C154: Javier te aconsejo prudencia. | D154: El vocativo siempre va separado del resto de la oración por coma.
A155: 154 | B155: Tienes que dibujar cuadrados, triángulos, y circunferencias. | C155: Tienes que dibujar cuadrados triángulos y circunferencias. | D155: El vocativo siempre va separado del resto de la oración por coma.
A156: 155 | B156: Compró guantes, bufandas y calcetines de abrigo. | C156: Compró guantes bufandas y calcetines de abrigo. | D156: Se escrib coma entre las palabras que forman enumeraciones y no van unidas por las conjunciones y, e, ni, o.
A157: 156 | B157: ¿ Me podrías decir si ayer comimos plátanos, peras, naranjas o melocotones ? | C157: ¿ Me podrías decir si ayer comimos plátanos peras naranjas o melocotones ? | D157: Se escrib coma entre las palabras que forman enumeraciones y no van unidas por las conjunciones y, e, ni, o.
A158: 157 | B158: Miraba los árboles que su abuelo había plantado, y recordaba los días felices de su niñez, y se sentía nostálgico. | C158: Miraba los árboles que su abuelo había plantado y recordaba los días felices de su niñez y se sentía nostálgico. | D158: Se escrib coma entre las palabras que forman enumeraciones y no van unidas por las conjunciones y, e, ni, o.
A159: 158 | B159: Caminaba por el valle, el sol relucía en lo alto, y el mar se veía a lo lejos. | C159: Caminaba por el valle el sol relucía en lo alto y el mar se veía a lo lejos. | D159: Cuando hay varias oraciones independientes, se escribe coma para separar unas de otras, vayan o no precedidas de conjunciones.
A160: 159 | B160: Sus ojos, que eran oscuros y sinceros, no pasaron desapercibidos. | C160: Sus ojos que eran oscuros y sinceros no pasaron desapercibidos. | D160: Cuando hay varias oraciones independientes, se escribe coma para separar unas de otras, vayan o no precedidas de conjunciones.
A161: 160 | B161: El jugador, cansado de recibir patadas, fue a protestar al árbitro. | C161: El jugador cansado de recibir patadas fue a protestar al árbitro. | D161: Se escriben entre comas las palabras aclaratorias o las subordinadas que están intercaladas en una oración.
A162: 161 | B162: Miguel, que trabaja en el teatro, te traerá las entradas. | C162: Miguel que trabaja en el teatro te traera las entradas. | D162: Se escriben entre comas las palabras aclaratorias o las subordinadas que están intercaladas en una oración.
A163: 162 | B163: La película es buena, es decir, tiene muchos valores artísticos. | C163: La pelicula es buena es decir tiene muchos valores artisticos. | D163: Se escriben entre comas las palabras aclaratorias o las subordinadas que están intercaladas en una oración.
A164: 163 | B164: Os deseo, finalmente, que se cumplan todas vuestras aspiraciones. | C164: Os deseo finalmente que se cumplan todas vuestras aspiraciones. | D164: Se escribe delante de coma o entre comas expresiones como las siguientes: en efecto, sin embargo, etc.
A165: 164 | B165: Donde hay buena cocinera, se come bien. | C165: Donde hay buena cocinera se come bien. | D165: Se escribe delante de coma o entre comas expresiones como las siguientes: en efecto, sin embargo, finalmente, etc.
A166: 165 | B166: Al oír los gritos, acudieron todos. | C166: Al oir los gritos acudieron todos. | D166: Cuando en las oraciones compuestas se antepone la subordinada a la principal, se escribe coma entre ellas.
A167: 166 | B167: A pesar de que jugaron bien, perdieron el partido. | C167: A pesar de que jugaron bien perdieron el partido. | D167: Cuando en las oraciones compuestas se antepone la subordinada a la principal, se escribe coma entre ellas.
A168: 167 | B168: Yo iré a Valencia; Ana, a Mallorca; y Guillermo, a Málaga. | C168: Yo ire a Valencia Ana a Mallorca y Guillermo a Malaga. | D168: Cuando en las oraciones compuestas se antepone la subordinada a la principal, se escribe coma entre ellas.
A169: 168 | B169: Tronco de higuera, mala madera. | C169: Tronco de higuera mala madera. | D169: En una oración, si se suprime el verbo porque está sobreentendido, se suple con una coma.
A170: 169 | B170: José, me voy un momento. | C170: José me voy un momento.
A171: 170 | B171: Este verano hemos recorrido Francia, Italia, Austria, Suiza y Alemania. | C171: Este verano hemos recorrido Francia Italia Austria Suiza y Alemania.
A172: 171 | B172: Mira, Antonio, hazme caso, por favor. | C172: Mira Antonio hazme caso por favor.
A173: 172 | B173: Tu amiga es simpática, alegre, aplicada e inteligente. | C173: Tu amiga es simpática alegre aplicada e inteligente.
A174: 173 | B174: El río Ebro, que nace cerca de Reinosa, desemboca en el Mediterraneo. | C174: El río Ebro que nace cerca de Reinosa desemboca en el Mediterraneo.
A175: 174 | B175: París, es una ciudad cosmopolita. | C175: Paris es una ciudad cosmopolita.
A176: 175 | B176: Por último, vamos a explicar la geografía de España. | C176: Por último vamos a explicar la geografía de España.
A177: 176 | B177: Los romanos conquistaron la Península, es decir, la romanizaron. | C177: Los romanos conquistaron la Peninsula es decir la romanizaron.
A178: 177 | B178: La joven, viendo que no encontraba trabajo en su ciudad, se marchó de su casa. | C178: La joven viendo que no encontraba trabajo en su ciudad se marchó de su casa.
A179: 178 | B179: Si te das prisa, aún llegaremos a tiempo. | C179: Si te das prisa aún llegaremos a tiempo.
A180: 179 | B180: Puedes venir con nosotros, pero compórtate correctamente. | C180: Puedes venir con nosotros pero compórtate correctamente.
A181: 180 | B181: Aunque llueva, iremos al teatro. | C181: Aunque llueva iremos al teatro.
A182: 181 | B182: Según mi signo zodiacal, mi suerte va a cambiar. | C182: Según mi signo zodiacal mi suerte va a cambiar.
A183: 182 | B183: Me presenté al concurso, pero no tuve demasiado suerte. | C183: Me presenté al concurso pero no tuve demasiado suerte.
A184: 183 | B184: El mar estaba en calma, los pescadores recogían las redes, las voraces gaviotas revoloteaban en torno a las barcas. | C184: El mar estaba en calma los pescadores recogían las redes las voraces gaviotas revoloteaban en torno a las barcas.
A185: 184 | B185: Gato escaldado, del agua huye. | C185: Gato escaldado del agua huye.
A186: 185 | B186: Del mal, el menos. | C186: Del mal el menos.
A187: 186 | B187: Al que teniendo cama, duerme en el suelo, no hay que tenerle duelo. | C187: Al que teniendo cama duerme en el suelo no hay que tenerle duelo.
A188: 187 | B188: Al pan, pan, y al vino, vino. | C188: Al pan pan y al vino vino.
A189: 188 | B189: El arroz, el pez y el pepino nacen en agua y mueren en vino. | C189: El arroz el pez y el pepino nacen en agua y mueren en vino.
A190: 189 | B190: Si te vi, no me acuerdo. | C190: Si te vi no me acuerdo.
A191: 190 | B191: No es pobre el que tiene, sino el que mucho quiere. | C191: No es pobre el que tiene sino el que mucho quiere.
A192: 191 | B192: A buen entendedor, pocas palabras bastan. | C192: A buen entendedor pocas palabras bastan.
A193: 192 | B193: A falta de pan, buenas son tortas. | C193: A falta de pan buenas son tortas.
A194: 193 | B194: Zapatero, a tus zapatos. | C194: Zapatero a tus zapatos.
A195: 194 | B195: El parque de la villa tenía siete árboles, siete farolas y siete bancos. | C195: El parque de la villa tenia siete arboles siete farolas y siete bancos.
A196: =A195+1 -> 195 | B196: En el parque de la villa, entre polvo, jugaban los niños y recordaban los viejos. | C196: En el parque de la villa entre polvo jugaban los niños y recordaban los viejos.
A197: 196 | B197: Cuando sonaban las diez en el reloj del Ayuntamiento, los niños, ya sin risas, dejaban el parque. | C197: Cuando sonaban las diez en el reloj del Ayuntamiento los niños ya sin risas dejaban el parque.
A198: 197 | B198: Cuando sonaban las diez y media en el reloj de las Hermanas de la Caridad, los viejos, con todos sus recuerdos titubeantes, se marchaban del parque. | C198: Cuando sonaban las diez y media en el reloj de las hermanas de la caridad los viejos con todos sus recuerdos titubeantes se marchaban del parque.
A199: 198 | B199: Después de las doce de la noche solía haber en el parque algún borracho cantarín, pero el Bando lo prohibía. | C199: Después de las doce de la noche solía haber en el parque algún borracho cantarín pero el Bando lo prohibía.
A200: 199 | B200: A grandes males, grandes remedios. | C200: A grandes males grandes remedios.
... 1137 more rows

Sheet ESCRITURA
J1: habilitar este contenido | N1: junio del 2010 por joannostro | X1: =RANDBETWEEN(1,152) -> 35
X2: 141
A3: =VLOOKUP(X2,apuntes!A2:D1148,4,FALSE) -> Para introducir una oración explicativa
A4: =VLOOKUP(X2,apuntes!A2:D499,2,FALSE) -> Su solicitud, señora Solís, la atenderemos en cuanto nos sea posible.
X6: 0 | Y6: 1
A8: =VLOOKUP(X2,apuntes!A2:D499,3,FALSE) -> Su solicitud señora Solís la atenderemos en cuanto nos sea posible. | X8: 0 | Y8: 1
X9: =D17+G17 -> 0
D17: =X6 -> 0 | G17: =X8 -> 0 | L17: =IF(X6=0,"",D17/X9*100) ->  | U17: =RANDBETWEEN(1,152) -> 111 | V17: 118

Sheet Hoja1
E13: Habilitar este contenido
